Cogmind - Beta 17.1 @@@ ROGUE MODE // 2026.09.06 @ 04:20:13 Player: Somberlain Result: Destroyed by CB-G35(R) with Subdweller Beam Cannon Performance ------------- Evolutions (0) 0 Regions Visited (3) 600 Robots Destroyed (14) 70 Value Destroyed (354) 354 Prototype IDs (0) 0 Alien Tech Used (0) 0 Bonus (0) 0 TOTAL SCORE: 1024 Bonus ------- None Cogmind --------- Core Integrity 0/250 Matter 187/300 Energy 85/100 System Corruption 0% Temperature Cool (9) Movement Core (250) Ox4 Location -10/Subcaves Parts ------- > --- POWER (1) -------- (None) > --- PROPULSION (2) --- (None) > --- UTILITY (2) ------ Small Storage Unit Makeshift Light Armor Plating > --- WEAPON (2) ------- Battle Cannon Battle Cannon > --- INVENTORY (8) ---- Improved Ion Engine Field Recycling Unit (0) Riot Gun Grenade Launcher Shrapnel Trap Peak State ------------ > --- POWER ------------ Improved Ion Engine > --- PROPULSION ------- Aluminum Leg Aluminum Leg > --- UTILITY ---------- Small Storage Unit Subdweller Optics > --- WEAPON ----------- Flamer Enhanced Flamer > --- INVENTORY -------- Improved Ion Engine Makeshift Light Armor Plating Field Recycling Unit Battle Cannon Grenade Launcher Shrapnel Trap [Rating: 13] Favorites ----------- Power Improved Ion Engine Engine Improved Ion Engine Propulsion Aluminum Leg Leg Aluminum Leg Utility Small Storage Unit Device Subdweller Optics Storage Small Storage Unit Protection Makeshift Light Armor Plating Weapon Heavy EM Pulse Gun Energy Gun Heavy EM Pulse Gun Ballistic Gun Light Assault Rifle Ballistic Cannon Battle Cannon Launcher Grenade Launcher Special Weapon Enhanced Flamer Build | -11 -10 -10 -10 ------- Run | Yrd Mat Min Sub Slots Evolved . | . . . . Power . | . . . . Propulsion . | . . . . Utility . | . . . . Weapon . | . . . . Parts Attached 18 | 6 4 1 7 Power 2 | 1 1 . . Engine 2 | 1 1 . . Core . | . . . . Reactor . | . . . . Propulsion 3 | 2 . . 1 Treads . | . . . . Leg 3 | 2 . . 1 Wheel . | . . . . Hover . | . . . . Flight . | . . . . Utility 3 | 1 . . 2 Device 1 | . . . 1 Storage 1 | 1 . . . Processor . | . . . . Hackware . | . . . . Protection 1 | . . . 1 Artifact . | . . . . Weapon 10 | 2 3 1 4 Energy Gun 4 | 1 2 1 . Energy Cannon . | . . . . Ballistic Gun 1 | 1 . . . Ballistic Cannon 2 | . . . 2 Launcher 1 | . 1 . . Special Weapon 2 | . . . 2 Impact Weapon . | . . . . Slashing Weapon . | . . . . Piercing Weapon . | . . . . Special Melee Weapon . | . . . . Unidentified Prototypes . | . . . . Parts Lost 6 | . . 1 5 Power 1 | . . . 1 Propulsion 2 | . . . 2 Utility . | . . . . Weapon 3 | . . 1 2 Highest Loss Streak 5 | . . 1 5 To Critical Strikes . | . . . . Average Backups 5 | . 1 5 6 Power . | . . 1 1 Propulsion . | . . 1 . Utility 1 | . . 1 1 Weapon 2 | . 1 2 3 Tool/Special . | . . . . Unused Backups 4 | . . . 4 Power 1 | . . . 1 Propulsion . | . . . . Utility 1 | . . . 1 Weapon 2 | . . . 2 Tool/Special . | . . . . Average Slot Usage (%) 87 | . 84 85 88 Engine 13 | . 14 14 13 Leg 27 | . 28 28 27 Device 3 | . . . 4 Storage 14 | . 14 14 14 Energy Gun 13 | . 15 28 11 Ballistic Gun 1 | . 11 . . Special Weapon 12 | . . . 16 Peak Build Rating 13 | 6 10 10 13 Average Rating 10 | 4 6 9 10 On Entrance 6 | . 6 10 9 Avg Prop Armor Cover (%) . | . . . . Naked Turns . | . . . . Heaviest Build 18 | 13 18 18 18 Greatest Support 20 | 20 20 20 20 Greatest Overweight (x) 4 | . . . 4 Average Overweight (x) . | . . . . Largest Inventory Capacity 8 | 8 8 8 8 Average Capacity 7 | 6 8 8 8 Most Carried 8 | . 8 6 8 Average Carried 6 | . 1 5 6 Final Capacity 8 | 8 8 8 8 Final Carried 6 | . 6 5 5 Class Distribution -------------------- 100% | Mutant Dominant Class ---------------- Mutant | -10/Materials Mutant | -10/Mines Mutant | -10/Subcaves Resources | -11 -10 -10 -10 ----------- Run | Yrd Mat Min Sub Matter Collected 406 | 232 117 10 47 Remotely . | . . . . Salvage Created 476 | . 124 252 100 Parts 23 | . 5 16 2 Haulers Intercepted 1 | . 1 . . Recyclers Shooed 1 | . . 1 . Parts Field Recycled . | . . . . Retrieved Matter . | . . . . Parts Self-Destructed 4 | . . . 4 Prevented . | . . . . Parts Restored . | . . . . Kills | -11 -10 -10 -10 ------- Run | Yrd Mat Min Sub Combat Hostiles Destroyed 11 | . 2 5 4 Guns 5 | . 1 4 . Cannons 2 | . . . 2 AOE 1 | . 1 . . Classes Destroyed 6 | . 2 3 1 Tunneler 1 | . . 1 . Hauler 1 | . 1 . . Recycler 1 | . . 1 . Swarmer 3 | . . 3 . Grunt 4 | . 2 2 . Subdweller 4 | . . . 4 Best Kill Streak 7 | . 1 7 2 Combat Bots Only 5 | . 1 5 2 Max Kills in Single Turn 2 | . 1 2 1 Gunslinging . | . . . . Exploded 1 | . 1 . . Melee . | . . . . Uniques/NPCs Destroyed . | . . . . Combat | -11 -10 -10 -10 -------- Run | Yrd Mat Min Sub Hostile Shots Fired 67 | . 2 21 44 Missed 15 | . . 5 10 Hits 52 | . 2 16 34 Projectile 52 | . 2 16 34 Critical Strikes 1 | . . . 1 Damage Taken 1020 | . 22 196 802 Core 264 | . . 61 203 Absorbed by Shields . | . . . . Core Remaining (%) 100 | 100 . . . Volleys Fired 42 | . 13 12 17 Largest 2 | . 2 2 2 Hottest 180 | . 90 90 180 Shots Fired 73 | . 23 21 29 Gun 41 | . 20 21 . Cannon 16 | . . . 16 Launcher 3 | . 3 . . Special 13 | . . . 13 Kinetic 25 | . 9 . 16 Thermal 22 | . 9 . 13 Explosive 3 | . 3 . . Electromagnetic 23 | . 2 21 . Robot Hit Streak 8 | . 2 5 8 Robot Miss Streak 4 | . 2 4 1 Penetration Max . | . . . . Secondary Targets 1 | . . 1 . Max Gunslinging Chain 1 | . . 1 . Shots Hit Robots 43 | . 8 12 23 Core Hits 21 | . 6 7 8 Critical Kills . | . . . . Critical Parts Destroyed . | . . . . Critical Strikes 4 | . . . 4 Burn 3 | . . . 3 Blast 1 | . . . 1 Melee Attacks . | . . . . Impact . | . . . . Slashing . | . . . . Piercing . | . . . . Sneak Attacks . | . . . . Combat Hostiles . | . . . . Follow-up Attacks . | . . . . Damage Inflicted 962 | . 135 419 408 Guns 334 | . 85 249 . Cannons 287 | . . . 287 Explosions 220 | . 50 170 . Melee . | . . . . Ramming . | . . . . Kinetic 307 | . 20 . 287 Thermal 341 | . 50 170 121 Explosive 50 | . 50 . . Electromagnetic 264 | . 15 249 . Impact . | . . . . Slashing . | . . . . Piercing . | . . . . Highest Corruption . | . . . . Average Corruption . | . . . . Corruption Purged . | . . . . Corruption Blocked . | . . . . Overload Shots . | . . . . Overflow Damage . | . . . . Projectiles . | . . . . Explosions . | . . . . Melee . | . . . . Knockbacks 4 | . . . 4 Impact . | . . . . Kinetic 4 | . . . 4 Secondary . | . . . . Self-Inflicted Damage 14 | . . 14 . Shots 1 | . . 1 . Rammed . | . . . . Targets Rammed . | . . . . Kicked . | . . . . Crushed . | . . . . Highest Temperature 273 | . 60 273 51 Average Temperature 86 | . 24 155 18 Received Heat Transfer 294 | . 12 69 213 Effects 1 | . . 1 . Energy Bleed 1 | . . 1 . Siege Activations . | . . . . Martial Activations . | . . . . Shielding Activations . | . . . . Robots Disrupted . | . . . . Combat Hostiles . | . . . . Robots Corrupted 1 | . . 1 . Combat Hostiles 1 | . . 1 . Parts Fried 1 | . . 1 . Impact Corruptions . | . . . . Robots Melted 2 | . . . 2 Combat Hostiles 2 | . . . 2 Parts Melted 2 | . . . 2 Heat Transferred 1708 | . 148 200 1360 Parts Sabotaged . | . . . . Parts Stolen . | . . . . Parts Stripped . | . . . . Power Chain Reactions 2 | . . 2 . Alert | -11 -10 -10 -10 ------- Run | Yrd Mat Min Sub Maximum Alert Level . | . . . . Low Security (%) 100 | 100 100 100 . Level 1 . | . . . . Level 2 . | . . . . Level 3 . | . . . . Level 4 . | . . . . Level 5 . | . . . . High Security . | . . . . Max Security . | . . . . Peak Influence 107 | . 37 107 . Initial . | . . . . Average 18 | . 9 36 . Influence Increases 221 | . 84 137 . Destroy 0b10 Robot/C 140 | . 40 100 . Destroy 0b10 Robot/NC 15 | . 5 10 . Destroy Leader 42 | . 22 20 . Destroy Structure 24 | . 17 7 . Influence Decreases 221 | . 84 60 77 Entered New Map 41 | . . . 41 Time Decay 170 | . 84 50 36 Lost Part 10 | . . 10 . Squads Dispatched 2 | . 2 . . Investigation 1 | . 1 . . Extermination . | . . . . Reinforcement 1 | . 1 . . Assault . | . . . . Garrison . | . . . . Intercept . | . . . . Searches Triggered . | . . . . Construction Impeded . | . . . . Haulers Reinforced . | . . . . Active Scanning Responses . | . . . . Cargo Convoy Interrupts . | . . . . Stealth | -11 -10 -10 -10 --------- Run | Yrd Mat Min Sub Distress Signals 2 | . 2 . . Communications Jammed . | . . . . Distress Signals . | . . . . Times Spotted 16 | . 5 5 6 Peak Tracking Total 3 | . 2 3 2 Tactical Retreats . | . . . . Traps | -11 -10 -10 -10 ------- Run | Yrd Mat Min Sub Traps Triggered 2 | . . . 2 Indirectly . | . . . . Trap Hack Attempts . | . . . . Triggered . | . . . . Disarmed . | . . . . Reprogrammed . | . . . . Reused . | . . . . Traps Extracted . | . . . . Installed . | . . . . Triggered . | . . . . Most Traps Carried 1 | . . . 1 Machines | -11 -10 -10 -10 ---------- Run | Yrd Mat Min Sub Machines Disabled . | . . . . Max in Single Turn . | . . . . Machines Repaired . | . . . . Machines Dismantled . | . . . . Machines Sabotaged . | . . . . Overloaded Fab Kills . | . . . . Hacking | -11 -10 -10 -10 --------- Run | Yrd Mat Min Sub Machines Accessed 2 | . 2 . . Terminals 2 | . 2 . . Fabricators . | . . . . Repair Stations . | . . . . Recycling Units . | . . . . Scanalyzers . | . . . . Garrison Access . | . . . . Total Hacks 4 | . 4 . . Successful . | . . . . Failed 4 | . 4 . . Catastrophic . | . . . . Database Lockouts . | . . . . Manual 1 | . 1 . . Terminals 4 | . 4 . . Fabricators . | . . . . Repair Stations . | . . . . Recycling Units . | . . . . Scanalyzers . | . . . . Garrison Access . | . . . . Terminal Hacks . | . . . . Fabricator Hacks . | . . . . Repair Station Hacks . | . . . . Recycling Unit Hacks . | . . . . Scanalyzer . | . . . . Garrison Access Hacks . | . . . . Unauthorized Hacks . | . . . . Terminals . | . . . . Fabricators . | . . . . Repair Stations . | . . . . Recycling Units . | . . . . Scanalyzers . | . . . . Garrison Access . | . . . . Data Cores Recovered . | . . . . Used . | . . . . Hacking Detections 2 | . 2 . . Full Trace Events 1 | . 1 . . Feedback Events . | . . . . Feedback Blocked . | . . . . Robot Schematics Acquired . | . . . . Robots Built . | . . . . Authchips . | . . . . Time . | . . . . Total Robot Build Rating . | . . . . Part Schematics Acquired . | . . . . Parts Built . | . . . . Authchips . | . . . . Time . | . . . . Total Part Build Rating . | . . . . Part Studies Acquired . | . . . . Parts Repaired . | . . . . Time . | . . . . Parts Recycled . | . . . . Recycled Matter . | . . . . Retrieved Matter . | . . . . Retrieved Components . | . . . . Parts Scanalyzed . | . . . . Part Schematics Acquired . | . . . . Parts Damaged . | . . . . Bothacking | -11 -10 -10 -10 ------------ Run | Yrd Mat Min Sub Used RIF Installer . | . . . . Robots Hacked . | . . . . Non-combat . | . . . . Combat . | . . . . Robot Hacks Applied . | . . . . Relay Couplers Released . | . . . . Fabnet Peak Effective % . | . . . . Robots Rewired . | . . . . Allies Hacked . | . . . . Hacks Repelled . | . . . . Allies | -11 -10 -10 -10 -------- Run | Yrd Mat Min Sub Total Allies . | . . . . Largest Group . | . . . . Highest-Rated Group . | . . . . Highest-Rated Ally . | . . . . Total Orders . | . . . . Ally Attacks . | . . . . Total Damage . | . . . . Kills . | . . . . Allies Corrupted . | . . . . Allies Melted . | . . . . Intel | -11 -10 -10 -10 ------- Run | Yrd Mat Min Sub Active Infowar (turns) 581 | . . . 581 Optics 581 | . . . 581 Robot Analysis Total . | . . . . Derelict Logs Recovered . | . . . . Drone Launches . | . . . . Drone Recoveries . | . . . . Exploration | -11 -10 -10 -10 ------------- Run | Yrd Mat Min Sub Turns Passed 2408 | 56 268 182 1902 Spaces Moved 1249 | 40 182 94 933 Core 20 | 9 . . 11 Treads . | . . . . Legs 1229 | 31 182 94 922 Wheels . | . . . . Hover . | . . . . Flight . | . . . . Fastest Speed 50 | 50 120 120 120 Average Speed 120 | 104 120 120 120 Slowest Speed 250 | 120 120 120 250 Overloaded Moves . | . . . . Propulsion Burnouts . | . . . . Robots Hopped . | . . . . Potential Cave-ins . | . . . . Cave-ins Triggered . | . . . . Exploration Rate (%) 26 | 3 36 25 40 Regions Visited 3 Branch Regions 2 Pre-discovered Areas . | . . . . Known Exits Taken . | . . . . Unknown Exits Taken 3 | 1 1 1 . Scrap Searched . | . . . . Spaces Dug . | . . . . Terrain Destroyed 27 | . 20 7 . Melee . | . . . . Projectile . | . . . . AOE 27 | . 20 7 . Terrain Rammed . | . . . . Walls Destroyed . | . . . . Machines Disabled . | . . . . Actions | -11 -10 -10 -10 --------- Run | Yrd Mat Min Sub Total 2069 | 51 210 142 1666 Wait 738 | 6 . 36 696 Move 1246 | 39 181 93 933 Hop . | . . . . Pick Up 12 | . 6 . 6 Fast Attach 10 | 6 2 . 2 Attach 5 | . . 1 4 Detach 2 | . 2 . . Swap 6 | . 3 . 3 Drop 8 | . 3 . 5 Fire 42 | . 13 12 17 Melee . | . . . . Ram . | . . . . Kick . | . . . . Crush . | . . . . Escape Stasis . | . . . . Rewire . | . . . . Trap . | . . . . Miscellaneous . | . . . . Route ------- -11/Scrapyard -10/Materials (discovered 2 exits: [*Mat] / [*Min]) -10/Mines (discovered 2 exits: [*Mat] / [*Sub]) -10/Subcaves (discovered 1 exit: [*Mat]) History --------- Turn | Location | Event 5 | -11/Scrapyard | Discovered new exit (range 15) 57 | -11/Scrapyard | Entered Materials 129 | -10/Materials | Discovered new exit (range 15) 310 | -10/Materials | Build established: Mutant 315 | -10/Materials | Discovered new exit (range 9) 325 | -10/Materials | Entered Mines 489 | -10/Mines | Discovered new exit (range 7) 497 | -10/Mines | Discovered new exit (range 9) 507 | -10/Mines | Entered Subcaves 637 | -10/Subcaves | Curiously followed by a Cobbler waking with a query about "LVR3C" 1296 | -10/Subcaves | Discovered new exit (range 8) 2350 | -10/Subcaves | Core integrity fell below 50% 2366 | -10/Subcaves | Core integrity fell below 20% 2387 | -10/Subcaves | Lost 5 parts (1p2n2w) 2409 | -10/Subcaves | Destroyed by CB-G35(R) with Subdweller Beam Cannon Last Messages --------------- 02185_ Sub. Optics shoots sparks and powers down. 02185_ Dropped Broken Sub. Optics. 02339_ Aluminum Leg destroyed. 02341_ Flamer destroyed. 02343_ WQ-I6B(R) heat short circuits Sub. Power Source. 02345_ Imp. Ion Engine destroyed. 02347_ Aluminum Leg destroyed. 02356_ Enh. Flamer destroyed. 02359_ WQ-I6B(R) knocked back. 02362_ 2A-5PW(O) knocked back. 02362_ WQ-I6B(R) knocked back. 02365_ WQ-I6B(R) destroyed. 02371_ 1X-DIR(R) destroyed. 02378_ Subatomizers dissect the Sub. Optics. 02380_ Acquired 17 matter. 02392_ Subatomizers dissect the Sub. Optics. 02402_ CB-G35(R) knocked back. 02402_ CB-G35(R) Sub. Monowheel blasted off. Map ----- +----------------------------------------------------+ | ?????????????????????????????????????????????????? | | ?????????????????????????????????????????????????? | | ?????????????????????????????????????????????????? | | ?????????????????????????????????????????????????? | | ?????????????????????????????????????????????????? | | ?????????????????????????????????????????????????? | | ??????????????????###????????? ??????????????????? | | ??????????????????# #??????? ??????????????????? | | ????????????????### #?????? ???????????????????? | | ???????????????## ###?? ???????????????????? | | ???????????????# ### ????????????????????? | | ???????????????# ?????????????????????? | | ????????????????# ?????????????????????? | | ????????????????# ??????????????????????? | | ????????????????? ###????????????????????? | | ??????????????????# ?????????????????????? | | ???????????????????# ??????????????????????? | | ???????????????????# & #???????????????????????? | | ????????????????????# & #???????????????????????? | | ??????????????# ????#% !&##??????????????????????? | | ???????????????# ## % %%##?????????????????????? | | ????????????????# RR###??#????????????????? | | ????????????????# #? #???????????????? | | ????????????????# #; ## #???????????????? | | ???????????????# ##% #??###???????????? | | ???????????????### #?#@ # # #?# ????????????? | | ?????????????????## #??## ###?## ????####????? | | ??????????????????###???## #???# ????## ##???? | | ???????????????????????## #???# #????# #???? | | ?????????????????????### #???# #??### ##??? | | ????????????????????## ##?? #??# #??? | | ??????????????????### #### #???# #??? | | ??????????????????# ## ##??# #??? | | ???????????????#### #??## #??? | | ???????????????# ### #??## ##??? | | ???????????????# ### #??# ##???? | | ??????????????## #?# ### #?## ##????? | | ??????????????# ##### #?# ### #?????? | | ??????????????# #### #### #?????? | | ???????????????# #?# ##?????? | | ??????????????## #?# ##?????? | | ?????????????## #?# ##????? | | ?????????????# #### #?## #????? | | ?????????????# #??# #??# ##????? | | ?????????????# ##?# ##?# #?????? | | ?????????????# ## #?# ### #?????? | | ?????????????#### ### ## #????? | | ????????????????# ## ##????? | | ??????????????### ### ### ## ##?????? | | ?????????????## ##?## ### ##?#######??????? | +----------------------------------------------------+ Best States ------------- Heat Dissipation 25 Energy Generation 12 Energy Capacity 265 Matter Stores 300 Matter Capacity 300 Sight Range 21 Terrain Scan Density 10 Armor Coverage 100 Evasion (%) 55 Item Schematics ----------------- None Robot Schematics ------------------ None Fabricated ------------ Nothing Repaired ---------- Nothing Studied --------- None Alien Tech Used ----------------- None Achievements -------------- None Challenges ------------ None Game ------ Seed SigixBladeGutpuncher Manual? 0 Play Time 00:12:45 Cumulative 72.5 hours Start 2026.09.06 @ 04:10:25 End 2026.09.06 @ 04:20:13 Sessions 1 Manual Loads 0 Difficulty Rogue Special Mode None Game No. 94 Rogue 94 Adventurer 0 Explorer 0 Win Type - Total 0 Types 0/0/0/0/0/0/0/0/0/0 Lore% 39 Gallery% 39 Achievement% 35 Wizard Run 0 Options --------- Layout 1 ASCII 0 Keyboard 0 Movement Mouse Keybinds 0 Fullscreen 2 Font 24/Smallcaps Map View 50x35 Zoom Use 0% Tactical HUD 1 Map Filters NONE Filters NONE Steam 1 RUN: b515951d-a65c-4c3d-a901-6c199503a0c3